[Event "*** Titled Tuesday Blitz"]
[Site "Chess.com"]
[Date "2019.01.01"]
[Round "10"]
[White "Muracle"]
[Black "oskariot"]
[Result "1/2-1/2"]
[WhiteElo "2530"]
[BlackElo "2570"]
[TimeControl "180+2"]
[EndTime "15:23:40 PST"]
[Termination "Game drawn by agreement"]

1. Nf3 {[%clk 0:03:01.9]} 1... g6 {[%clk 0:03:00.9]} 2. g3 {[%clk 0:03:01.7]}
2... Bg7 {[%clk 0:03:02.4]} 3. Bg2 {[%clk 0:03:03]} 3... e5 {[%clk 0:03:04]} 4.
O-O {[%clk 0:03:04.5]} 4... d5 {[%clk 0:03:04.8]} 5. d3 {[%clk 0:03:04.4]} 5...
Nc6 {[%clk 0:03:05.2]} 6. c4 {[%clk 0:03:04.9]} 6... Nge7 {[%clk 0:02:55.6]} 7.
Nc3 {[%clk 0:03:00]} 7... d4 {[%clk 0:02:50.1]} 8. Nb1 {[%clk 0:02:58.3]} 8...
O-O {[%clk 0:02:48.9]} 9. e3 {[%clk 0:02:55.1]} 9... dxe3 {[%clk 0:02:38.5]} 10.
fxe3 {[%clk 0:02:51.3]} 10... e4 {[%clk 0:02:39.7]} 11. dxe4 {[%clk 0:02:49.9]}
11... Bg4 {[%clk 0:02:28.7]} 12. Nc3 {[%clk 0:02:48.6]} 12... Qxd1 {[%clk
0:02:28]} 13. Rxd1 {[%clk 0:02:50.5]} 13... Ne5 {[%clk 0:02:21.4]} 14. Kf2
{[%clk 0:02:49.6]} 14... Bxf3 {[%clk 0:02:16.2]} 15. Bxf3 {[%clk 0:02:49.9]}
15... Nxc4 {[%clk 0:02:14.4]} 16. Rd7 {[%clk 0:02:47.7]} 16... Nc6 {[%clk
0:02:06.4]} 17. Rxc7 {[%clk 0:02:48]} 17... Rab8 {[%clk 0:01:57.8]} 18. Nd5
{[%clk 0:02:46.9]} 18... N6e5 {[%clk 0:01:42.2]} 19. Be2 {[%clk 0:02:46.6]}
19... Nd6 {[%clk 0:01:41.6]} 20. Bf3 {[%clk 0:02:29.4]} 20... Kh8 {[%clk
0:01:17]} 21. Bg2 {[%clk 0:02:25.2]} 21... Rbc8 {[%clk 0:01:06.4]} 22. Bd2
{[%clk 0:01:45]} 22... Rxc7 {[%clk 0:01:05.7]} 23. Nxc7 {[%clk 0:01:46.9]} 23...
Rc8 {[%clk 0:01:07.2]} 24. Nd5 {[%clk 0:01:42.4]} 24... Rc2 {[%clk 0:01:05.4]}
25. Ke1 {[%clk 0:01:42.8]} 25... Ndc4 {[%clk 0:00:55.8]} 26. Rd1 {[%clk
0:01:30.2]} 26... Nd3+ {[%clk 0:00:53.8]} 27. Ke2 {[%clk 0:01:30]} 27... Ncxb2
{[%clk 0:00:25.8]} 28. Rf1 {[%clk 0:01:13.9]} 28... Ne5 {[%clk 0:00:21.6]} 29.
Nb4 {[%clk 0:01:04.3]} 29... Rc8 {[%clk 0:00:21.2]} 30. Bh3 {[%clk 0:01:04.1]}
30... Rd8 {[%clk 0:00:21.6]} 31. Bc3 {[%clk 0:01:04.1]} 31... Nbc4 {[%clk
0:00:22.4]} 32. Nd5 {[%clk 0:01:03.4]} 32... b5 {[%clk 0:00:22.9]} 33. Rb1
{[%clk 0:01:01.8]} 33... a6 {[%clk 0:00:24.1]} 34. Bd4 {[%clk 0:01:01.5]} 34...
h5 {[%clk 0:00:23.9]} 35. Nb4 {[%clk 0:00:52.6]} 35... Rd6 {[%clk 0:00:21.9]}
36. Nd5 {[%clk 0:00:50.1]} 36... Kh7 {[%clk 0:00:22.8]} 37. Bc8 {[%clk
0:00:47.2]} 37... f5 {[%clk 0:00:23]} 38. Bb7 {[%clk 0:00:39.6]} 38... fxe4
{[%clk 0:00:22.7]} 39. Nf4 {[%clk 0:00:39.5]} 39... Ng4 {[%clk 0:00:11.2]} 40.
Bxe4 {[%clk 0:00:38.1]} 40... Bxd4 {[%clk 0:00:10.7]} 41. exd4 {[%clk 0:00:40]}
41... Rxd4 {[%clk 0:00:12.6]} 42. Bxg6+ {[%clk 0:00:40.9]} 42... Kh6 {[%clk
0:00:14.5]} 43. Bxh5 {[%clk 0:00:42.2]} 43... Rd2+ {[%clk 0:00:04.7]} 44. Kf3
{[%clk 0:00:42.8]} 44... Nf6 {[%clk 0:00:04.7]} 45. Bf7 {[%clk 0:00:28.7]} 45...
Ne5+ {[%clk 0:00:05.4]} 46. Ke3 {[%clk 0:00:29.8]} 46... Rxh2 {[%clk 0:00:06.1]}
47. Be6 {[%clk 0:00:25.9]} 47... Kg5 {[%clk 0:00:06.5]} 48. Rc1 {[%clk
0:00:22.4]} 48... Neg4+ {[%clk 0:00:06.8]} 49. Kd3 {[%clk 0:00:21]} 49... Rh8
{[%clk 0:00:05.5]} 50. Rc5+ {[%clk 0:00:21.1]} 50... Kh6 {[%clk 0:00:06.1]} 51.
Rc6 {[%clk 0:00:22.2]} 51... Rd8+ {[%clk 0:00:06.9]} 52. Ke2 {[%clk 0:00:22.2]}
52... Ne5 {[%clk 0:00:07.5]} 53. Rc7 {[%clk 0:00:21.8]} 53... Ne4 {[%clk
0:00:07.9]} 54. g4 {[%clk 0:00:19.4]} 54... Ng5 {[%clk 0:00:06]} 55. Bf5 {[%clk
0:00:19.3]} 55... Ngf3 {[%clk 0:00:07.3]} 56. Ne6 {[%clk 0:00:19.1]} 56... Nd4+
{[%clk 0:00:07.4]} 57. Nxd4 {[%clk 0:00:19.3]} 57... Rxd4 {[%clk 0:00:09.3]} 58.
Ke3 {[%clk 0:00:20.8]} 58... Ra4 {[%clk 0:00:10]} 59. Be6 {[%clk 0:00:19.2]}
59... Nxg4+ {[%clk 0:00:11.1]} 60. Bxg4 {[%clk 0:00:18.1]} 60... Rxg4 {[%clk
0:00:13]} 61. Rc6+ {[%clk 0:00:19.6]} 61... Kg7 {[%clk 0:00:14.1]} 62. Rxa6
{[%clk 0:00:20.5]} 62... Ra4 {[%clk 0:00:15.5]} 63. Rxa4 {[%clk 0:00:21.7]}
63... bxa4 {[%clk 0:00:17.4]} 64. Kd4 {[%clk 0:00:23.6]} 64... Kf7 {[%clk
0:00:17.8]} 65. Kc4 {[%clk 0:00:25.5]} 65... a3 {[%clk 0:00:16.1]} 66. Kb4
{[%clk 0:00:27.4]} 66... Ke7 {[%clk 0:00:17.8]} 67. Kxa3 {[%clk 0:00:28.5]}
67... Kd7 {[%clk 0:00:19.7]} 68. Kb4 {[%clk 0:00:28.3]} 1/2-1/2

[Event "*** Titled Tuesday Blitz"]
[Site "Chess.com"]
[Date "2019.01.01"]
[Round "10"]
[White "JSMastropiero"]
[Black "Babas"]
[Result "1-0"]
[WhiteElo "2290"]
[BlackElo "2270"]
[TimeControl "180+2"]
[EndTime "15:23:45 PST"]
[Termination "JSMastropiero won by resignation"]

1. d4 {[%clk 0:03:01.9]} 1... Nf6 {[%clk 0:03:00.3]} 2. c4 {[%clk 0:03:01.5]}
2... c5 {[%clk 0:03:01.4]} 3. d5 {[%clk 0:03:01.5]} 3... e5 {[%clk 0:03:02.9]}
4. Nc3 {[%clk 0:03:00.6]} 4... d6 {[%clk 0:03:03.8]} 5. e4 {[%clk 0:03:00.6]}
5... Be7 {[%clk 0:03:05.7]} 6. g3 {[%clk 0:03:01]} 6... O-O {[%clk 0:02:58.4]}
7. Bg2 {[%clk 0:03:01.7]} 7... Ne8 {[%clk 0:02:58.5]} 8. Nf3 {[%clk 0:03:01.1]}
8... a6 {[%clk 0:02:32.4]} 9. O-O {[%clk 0:02:49.1]} 9... b5 {[%clk 0:02:32.4]}
10. cxb5 {[%clk 0:02:48.7]} 10... axb5 {[%clk 0:02:32]} 11. Nxb5 {[%clk
0:02:50.1]} 11... Ba6 {[%clk 0:02:32.9]} 12. Na3 {[%clk 0:02:32]} 12... Bxf1
{[%clk 0:02:32.8]} 13. Bxf1 {[%clk 0:02:33.4]} 13... Na6 {[%clk 0:02:10]} 14.
Nc4 {[%clk 0:02:29.4]} 14... Nf6 {[%clk 0:01:58.7]} 15. Qe2 {[%clk 0:02:15.1]}
15... Nd7 {[%clk 0:01:53.1]} 16. Bd2 {[%clk 0:02:14.4]} 16... Nb4 {[%clk
0:01:47.2]} 17. a3 {[%clk 0:02:04.3]} 17... Nc2 {[%clk 0:01:47.8]} 18. Rc1
{[%clk 0:01:56.6]} 18... Nd4 {[%clk 0:01:48.2]} 19. Nxd4 {[%clk 0:01:56.8]}
19... cxd4 {[%clk 0:01:35.8]} 20. b4 {[%clk 0:01:53.7]} 20... Nb6 {[%clk
0:01:35.2]} 21. Na5 {[%clk 0:01:53.3]} 21... Bg5 {[%clk 0:01:28.7]} 22. Rc6
{[%clk 0:01:40.1]} 22... Bxd2 {[%clk 0:01:18.1]} 23. Qxd2 {[%clk 0:01:42]} 23...
Na4 {[%clk 0:00:58]} 24. Nb7 {[%clk 0:01:35.5]} 24... Qe7 {[%clk 0:00:50.4]} 25.
Nxd6 {[%clk 0:01:36.4]} 25... Nc3 {[%clk 0:00:50.2]} 26. Ba6 {[%clk 0:00:58.9]}
26... g6 {[%clk 0:00:37.6]} 27. Qd3 {[%clk 0:00:53.5]} 27... Qg5 {[%clk
0:00:32.5]} 28. Nb5 {[%clk 0:00:51.2]} 28... Qc1+ {[%clk 0:00:21.4]} 29. Kg2
{[%clk 0:00:51.8]} 29... Qb2 {[%clk 0:00:11.4]} 30. Nxc3 {[%clk 0:00:49]} 30...
dxc3 {[%clk 0:00:13.3]} 31. b5 {[%clk 0:00:50.4]} 31... Qxa3 {[%clk 0:00:13]}
32. Rxc3 {[%clk 0:00:50.1]} 32... Qa1 {[%clk 0:00:12.1]} 33. d6 {[%clk
0:00:35.1]} 33... Rfd8 {[%clk 0:00:12.4]} 34. d7 {[%clk 0:00:33.2]} 34... Rxd7
{[%clk 0:00:13.5]} 35. Qxd7 {[%clk 0:00:17.8]} 35... Qxc3 {[%clk 0:00:14.6]} 36.
Qd5 {[%clk 0:00:18.1]} 36... Rb8 {[%clk 0:00:10.5]} 37. Bb7 {[%clk 0:00:17.1]}
37... Qc7 {[%clk 0:00:10.9]} 38. Bc6 {[%clk 0:00:17.9]} 38... Kg7 {[%clk
0:00:08.9]} 39. h4 {[%clk 0:00:16.6]} 39... Kf6 {[%clk 0:00:09.4]} 40. Qd2
{[%clk 0:00:16.5]} 40... Ke7 {[%clk 0:00:06.7]} 41. Qh6 {[%clk 0:00:16.4]} 41...
Qd6 {[%clk 0:00:05.1]} 42. Qxh7 {[%clk 0:00:14.3]} 42... Qf6 {[%clk 0:00:05.7]}
43. Qh6 {[%clk 0:00:15.7]} 43... Rd8 {[%clk 0:00:06]} 44. Qc1 {[%clk 0:00:14.9]}
44... Kf8 {[%clk 0:00:03]} 45. Bd5 {[%clk 0:00:13.2]} 45... Qd6 {[%clk
0:00:02.3]} 46. Qc4 {[%clk 0:00:13.3]} 46... Rd7 {[%clk 0:00:02.8]} 47. Qc8+
{[%clk 0:00:13.5]} 47... Kg7 {[%clk 0:00:03.5]} 48. Qc4 {[%clk 0:00:15.4]} 48...
Rc7 {[%clk 0:00:04]} 49. Bc6 {[%clk 0:00:15.9]} 49... f5 {[%clk 0:00:03.7]} 50.
exf5 {[%clk 0:00:16.1]} 50... gxf5 {[%clk 0:00:05.6]} 51. h5 {[%clk 0:00:16.9]}
51... Kf6 {[%clk 0:00:05.6]} 52. Qh4+ {[%clk 0:00:17.6]} 52... Kg7 {[%clk
0:00:06.4]} 53. Qg5+ {[%clk 0:00:18.8]} 53... Kh7 {[%clk 0:00:07.8]} 54. Qxf5+
{[%clk 0:00:20.1]} 54... Kg7 {[%clk 0:00:08.9]} 55. Qg5+ {[%clk 0:00:20.1]}
55... Kh7 {[%clk 0:00:10.3]} 56. Be4+ {[%clk 0:00:21.2]} 56... Kh8 {[%clk
0:00:11.1]} 57. h6 {[%clk 0:00:17.8]} 57... Rf7 {[%clk 0:00:10]} 58. h7 {[%clk
0:00:16.4]} 58... Qf8 {[%clk 0:00:09.8]} 59. Qxe5+ {[%clk 0:00:16.9]} 59... Rf6
{[%clk 0:00:10.7]} 60. b6 {[%clk 0:00:16.3]} 60... Kg7 {[%clk 0:00:12.6]} 61.
Qg5+ {[%clk 0:00:16.9]} 61... Kh8 {[%clk 0:00:12.9]} 62. Qe3 {[%clk 0:00:18.6]}
62... Qb8 {[%clk 0:00:12.3]} 63. Qd4 {[%clk 0:00:18.8]} 63... Qxb6 {[%clk
0:00:13.4]} 64. Qxb6 {[%clk 0:00:17.9]} 64... Rxb6 {[%clk 0:00:15.3]} 65. g4
{[%clk 0:00:18.8]} 65... Kg7 {[%clk 0:00:16.9]} 66. f3 {[%clk 0:00:19.5]} 66...
Rb8 {[%clk 0:00:18.1]} 67. Kg3 {[%clk 0:00:20.7]} 67... Rb1 {[%clk 0:00:19.5]}
68. Bxb1 {[%clk 0:00:20.8]} 1-0

[Event "*** Titled Tuesday Blitz"]
[Site "Chess.com"]
[Date "2019.01.01"]
[Round "10"]
[White "DanielMieles1985"]
[Black "Paralinch"]
[Result "1-0"]
[WhiteElo "2667"]
[BlackElo "2911"]
[TimeControl "180+2"]
[EndTime "15:23:56 PST"]
[Termination "DanielMieles1985 won by resignation"]

1. d4 {[%clk 0:03:01.2]} 1... d5 {[%clk 0:03:01.1]} 2. c4 {[%clk 0:03:02.3]}
2... dxc4 {[%clk 0:03:03]} 3. Nf3 {[%clk 0:03:01.8]} 3... Nf6 {[%clk 0:03:03.9]}
4. e3 {[%clk 0:03:03.2]} 4... e6 {[%clk 0:03:05.5]} 5. Bxc4 {[%clk 0:03:04.3]}
5... c5 {[%clk 0:03:07.2]} 6. O-O {[%clk 0:03:03.2]} 6... a6 {[%clk 0:03:08.8]}
7. Be2 {[%clk 0:03:02.5]} 7... b6 {[%clk 0:03:05]} 8. Nc3 {[%clk 0:02:54.5]}
8... Bb7 {[%clk 0:03:03.6]} 9. dxc5 {[%clk 0:02:52.6]} 9... Bxc5 {[%clk
0:03:01.5]} 10. Qxd8+ {[%clk 0:02:52.3]} 10... Kxd8 {[%clk 0:03:03.4]} 11. Na4
{[%clk 0:02:53.7]} 11... Nbd7 {[%clk 0:03:02.8]} 12. Nxc5 {[%clk 0:02:51.4]}
12... Nxc5 {[%clk 0:03:01.5]} 13. b3 {[%clk 0:02:52.6]} 13... Ke7 {[%clk
0:02:58]} 14. Bb2 {[%clk 0:02:53.4]} 14... Rhd8 {[%clk 0:02:56.9]} 15. Rfd1
{[%clk 0:02:53.7]} 15... Rxd1+ {[%clk 0:02:54.6]} 16. Rxd1 {[%clk 0:02:54.2]}
16... Rc8 {[%clk 0:02:55.9]} 17. Rc1 {[%clk 0:02:51.8]} 17... a5 {[%clk
0:02:43.4]} 18. Nd2 {[%clk 0:02:48.1]} 18... Nfd7 {[%clk 0:02:37]} 19. f3 {[%clk
0:02:38.6]} 19... f6 {[%clk 0:02:36.2]} 20. e4 {[%clk 0:02:39.1]} 20... e5
{[%clk 0:02:35]} 21. Kf2 {[%clk 0:02:38.8]} 21... Ne6 {[%clk 0:02:34.8]} 22.
Rxc8 {[%clk 0:02:35.3]} 22... Bxc8 {[%clk 0:02:36.7]} 23. Ke3 {[%clk 0:02:33.3]}
23... Kd8 {[%clk 0:02:31.8]} 24. g3 {[%clk 0:02:32.4]} 24... Kc7 {[%clk
0:02:30.3]} 25. Bb5 {[%clk 0:02:32.2]} 25... Bb7 {[%clk 0:02:26.9]} 26. f4
{[%clk 0:02:27.4]} 26... exf4+ {[%clk 0:02:19.7]} 27. gxf4 {[%clk 0:02:28.2]}
27... Bc6 {[%clk 0:02:15.9]} 28. Bc4 {[%clk 0:02:23.9]} 28... Ndc5 {[%clk
0:02:11]} 29. f5 {[%clk 0:02:15.9]} 29... Ng5 {[%clk 0:01:56]} 30. e5 {[%clk
0:02:16.6]} 30... Nd7 {[%clk 0:01:55.3]} 31. e6 {[%clk 0:02:12.6]} 31... Ne5
{[%clk 0:01:53.4]} 32. h4 {[%clk 0:02:04]} 32... Ngf3 {[%clk 0:01:49.3]} 33.
Nxf3 {[%clk 0:02:01.3]} 33... Nxf3 {[%clk 0:01:51.2]} 34. h5 {[%clk 0:02:00.5]}
34... h6 {[%clk 0:01:39.8]} 35. Ba3 {[%clk 0:01:57]} 35... b5 {[%clk 0:01:22.7]}
36. Be2 {[%clk 0:01:45.6]} 36... Nh4 {[%clk 0:01:23]} 37. Bg4 {[%clk 0:01:22.1]}
37... b4 {[%clk 0:01:23.4]} 38. Bc1 {[%clk 0:01:21.4]} 38... Kd6 {[%clk
0:01:17.6]} 39. Kf4 {[%clk 0:01:08.6]} 39... Ng2+ {[%clk 0:01:15.7]} 40. Kg3
{[%clk 0:01:08.8]} 40... Ne1 {[%clk 0:01:16.8]} 41. Be2 {[%clk 0:01:01.8]} 41...
Nc2 {[%clk 0:01:15.4]} 42. Bf4+ {[%clk 0:00:59.8]} 42... Ke7 {[%clk 0:01:14.7]}
43. Bc7 {[%clk 0:00:58.8]} 43... a4 {[%clk 0:01:12.6]} 44. bxa4 {[%clk
0:00:46.6]} 44... Bxa4 {[%clk 0:01:09.7]} 45. Bb6 {[%clk 0:00:47.7]} 45... Kd6
{[%clk 0:01:03.9]} 46. Bd1 {[%clk 0:00:45.7]} 46... b3 {[%clk 0:01:00]} 47. axb3
{[%clk 0:00:43.7]} 47... Bxb3 {[%clk 0:01:01.9]} 48. Ba5 {[%clk 0:00:41.6]}
48... Ke7 {[%clk 0:00:55.6]} 49. Kf4 {[%clk 0:00:30.2]} 49... Ke8 {[%clk
0:00:33.8]} 50. Ke4 {[%clk 0:00:29.6]} 50... Ba4 {[%clk 0:00:32.2]} 51. Bc3
{[%clk 0:00:21.1]} 51... Bc6+ {[%clk 0:00:29.2]} 52. Kd3 {[%clk 0:00:19.4]}
52... Na3 {[%clk 0:00:30.4]} 53. Bb4 {[%clk 0:00:18.6]} 53... Nb5 {[%clk
0:00:31.6]} 54. Kc4 {[%clk 0:00:18.1]} 54... Nc7 {[%clk 0:00:29.7]} 55. Kc5
{[%clk 0:00:16.4]} 55... Be4 {[%clk 0:00:30.6]} 56. Ba4+ {[%clk 0:00:16.3]}
56... Kd8 {[%clk 0:00:31]} 57. Kd4 {[%clk 0:00:12.1]} 57... Bxf5 {[%clk
0:00:24.1]} 58. e7+ {[%clk 0:00:13.4]} 58... Kc8 {[%clk 0:00:25.1]} 59. Bd6
{[%clk 0:00:11.6]} 59... Bd7 {[%clk 0:00:25.3]} 60. Bxd7+ {[%clk 0:00:09.4]}
60... Kxd7 {[%clk 0:00:27.2]} 61. Bxc7 {[%clk 0:00:10.8]} 61... Kxe7 {[%clk
0:00:28.7]} 62. Ke4 {[%clk 0:00:12.2]} 62... Ke6 {[%clk 0:00:29.2]} 63. Kf4
{[%clk 0:00:13.4]} 63... Kf7 {[%clk 0:00:16]} 64. Kf5 {[%clk 0:00:14.5]} 64...
Kg8 {[%clk 0:00:17.2]} 65. Kg6 {[%clk 0:00:15.8]} 65... Kh8 {[%clk 0:00:18.7]}
66. Bd6 {[%clk 0:00:16.7]} 66... Kg8 {[%clk 0:00:20.2]} 67. Be7 {[%clk
0:00:18.1]} 67... Kh8 {[%clk 0:00:21.2]} 68. Bf8 {[%clk 0:00:19.3]} 68... Kg8
{[%clk 0:00:22.7]} 69. Bxg7 {[%clk 0:00:20.2]} 69... f5 {[%clk 0:00:24.6]} 70.
Bxh6 {[%clk 0:00:21.4]} 70... f4 {[%clk 0:00:25.3]} 71. Bxf4 {[%clk 0:00:22.5]}
71... Kh8 {[%clk 0:00:26.1]} 72. Be5+ {[%clk 0:00:23.8]} 72... Kg8 {[%clk
0:00:28]} 73. h6 {[%clk 0:00:25.3]} 73... Kf8 {[%clk 0:00:29.6]} 74. h7 {[%clk
0:00:26.6]} 1-0

[Event "*** Titled Tuesday Blitz"]
[Site "Chess.com"]
[Date "2019.01.01"]
[Round "10"]
[White "Chessmatus"]
[Black "Tulipaz"]
[Result "1-0"]
[WhiteElo "2213"]
[BlackElo "2444"]
[TimeControl "180+2"]
[EndTime "15:23:57 PST"]
[Termination "Chessmatus won by checkmate"]

1. d4 {[%clk 0:03:01.9]} 1... d5 {[%clk 0:03:00.1]} 2. Nf3 {[%clk 0:03:00.9]}
2... Nf6 {[%clk 0:02:56.1]} 3. c4 {[%clk 0:03:02.2]} 3... c6 {[%clk 0:02:57.2]}
4. g3 {[%clk 0:03:03.1]} 4... g6 {[%clk 0:02:56.4]} 5. Bg2 {[%clk 0:03:03.5]}
5... Bg7 {[%clk 0:02:57.5]} 6. b3 {[%clk 0:03:04.7]} 6... O-O {[%clk 0:02:58.4]}
7. Bb2 {[%clk 0:03:05.1]} 7... Ne4 {[%clk 0:02:57.7]} 8. O-O {[%clk 0:03:05.9]}
8... a5 {[%clk 0:02:51.1]} 9. Nc3 {[%clk 0:03:02]} 9... Nxc3 {[%clk 0:02:50.8]}
10. Bxc3 {[%clk 0:03:02.5]} 10... Bf5 {[%clk 0:02:36]} 11. e3 {[%clk 0:03:03]}
11... Be4 {[%clk 0:02:33.7]} 12. Qe2 {[%clk 0:03:02.2]} 12... Nd7 {[%clk
0:02:27.9]} 13. Rfd1 {[%clk 0:02:54.2]} 13... e6 {[%clk 0:02:26.6]} 14. Bh3
{[%clk 0:02:54.6]} 14... Bxf3 {[%clk 0:02:15.8]} 15. Qxf3 {[%clk 0:02:54.9]}
15... a4 {[%clk 0:02:16.9]} 16. Bg2 {[%clk 0:02:53.2]} 16... Qb6 {[%clk
0:02:08.1]} 17. Rab1 {[%clk 0:02:26.7]} 17... Qa6 {[%clk 0:02:08.3]} 18. Bf1
{[%clk 0:02:25.3]} 18... Qa7 {[%clk 0:01:58.4]} 19. b4 {[%clk 0:02:15.9]} 19...
dxc4 {[%clk 0:01:46.3]} 20. Bxc4 {[%clk 0:02:15.7]} 20... Nb6 {[%clk 0:01:46]}
21. Bf1 {[%clk 0:02:15.7]} 21... Nd5 {[%clk 0:01:44.9]} 22. Be1 {[%clk
0:02:16.8]} 22... a3 {[%clk 0:01:21.1]} 23. b5 {[%clk 0:02:11.4]} 23... Rfd8
{[%clk 0:01:04.3]} 24. Rdc1 {[%clk 0:02:08.5]} 24... Rac8 {[%clk 0:00:58.5]} 25.
bxc6 {[%clk 0:02:07.3]} 25... bxc6 {[%clk 0:01:00.4]} 26. Rc4 {[%clk 0:02:01.4]}
26... Rc7 {[%clk 0:00:35.8]} 27. Qd1 {[%clk 0:01:56.8]} 27... Ra8 {[%clk
0:00:28.6]} 28. Rbc1 {[%clk 0:01:53]} 28... Qb7 {[%clk 0:00:25.8]} 29. Rb1
{[%clk 0:01:48.3]} 29... Qc8 {[%clk 0:00:26.3]} 30. Ra4 {[%clk 0:01:39.5]} 30...
c5 {[%clk 0:00:23.2]} 31. Rxa8 {[%clk 0:01:39.8]} 31... Qxa8 {[%clk 0:00:25.1]}
32. dxc5 {[%clk 0:00:55.1]} 32... Rxc5 {[%clk 0:00:27]} 33. Qb3 {[%clk
0:00:48.4]} 33... Rc8 {[%clk 0:00:26.6]} 34. Bg2 {[%clk 0:00:48]} 34... Bb2
{[%clk 0:00:23.8]} 35. Rd1 {[%clk 0:00:47.2]} 35... Rd8 {[%clk 0:00:21.7]} 36.
Bxd5 {[%clk 0:00:23.3]} 36... exd5 {[%clk 0:00:23.6]} 37. Bc3 {[%clk 0:00:23.7]}
37... Bxc3 {[%clk 0:00:21.7]} 38. Qxc3 {[%clk 0:00:24.5]} 38... Qa4 {[%clk
0:00:21]} 39. Rd4 {[%clk 0:00:23.4]} 39... Qa8 {[%clk 0:00:18.9]} 40. Qb3 {[%clk
0:00:24.1]} 40... Rb8 {[%clk 0:00:18.5]} 41. Rb4 {[%clk 0:00:15.2]} 41... Rc8
{[%clk 0:00:16.5]} 42. Ra4 {[%clk 0:00:12]} 42... Rc1+ {[%clk 0:00:16.3]} 43.
Kg2 {[%clk 0:00:12.6]} 43... Qc8 {[%clk 0:00:16.5]} 44. Qxa3 {[%clk 0:00:10.3]}
44... Kg7 {[%clk 0:00:13]} 45. Ra8 {[%clk 0:00:10.3]} 45... Qc6 {[%clk
0:00:13.6]} 46. Qb2+ {[%clk 0:00:10.6]} 46... f6 {[%clk 0:00:14.6]} 47. Ra7+
{[%clk 0:00:10]} 47... Kh6 {[%clk 0:00:15.7]} 48. Qb7 {[%clk 0:00:10.2]} 48...
d4+ {[%clk 0:00:13.7]} 49. Qxc6 {[%clk 0:00:10.4]} 49... Rxc6 {[%clk 0:00:15.6]}
50. exd4 {[%clk 0:00:11.3]} 50... Rc2 {[%clk 0:00:16]} 51. Kf3 {[%clk
0:00:10.7]} 51... Rd2 {[%clk 0:00:17.1]} 52. Ke3 {[%clk 0:00:11.1]} 52... Rd1
{[%clk 0:00:18.4]} 53. a4 {[%clk 0:00:11.9]} 53... Kg5 {[%clk 0:00:19.2]} 54. a5
{[%clk 0:00:13.2]} 54... h5 {[%clk 0:00:18]} 55. a6 {[%clk 0:00:14.4]} 55... Ra1
{[%clk 0:00:17.6]} 56. Ra8 {[%clk 0:00:15.4]} 56... Kf5 {[%clk 0:00:18.1]} 57.
a7 {[%clk 0:00:16.7]} 57... Ra3+ {[%clk 0:00:18.2]} 58. Kd2 {[%clk 0:00:17.1]}
58... Kg4 {[%clk 0:00:18.5]} 59. d5 {[%clk 0:00:17.7]} 59... Ra5 {[%clk
0:00:18]} 60. d6 {[%clk 0:00:18.1]} 60... Kf3 {[%clk 0:00:16.6]} 61. Kc3 {[%clk
0:00:18.3]} 61... Rd5 {[%clk 0:00:13.2]} 62. Rd8 {[%clk 0:00:18.8]} 62... Rc5+
{[%clk 0:00:14]} 63. Kb4 {[%clk 0:00:19.2]} 63... Rc1 {[%clk 0:00:14.3]} 64.
a8=Q+ {[%clk 0:00:19.9]} 64... Kxf2 {[%clk 0:00:14.7]} 65. Qa2+ {[%clk
0:00:19.8]} 65... Kg1 {[%clk 0:00:14.2]} 66. d7 {[%clk 0:00:20.8]} 66... g5
{[%clk 0:00:11.1]} 67. Rc8 {[%clk 0:00:21.8]} 67... Rd1 {[%clk 0:00:10.8]} 68.
d8=Q {[%clk 0:00:21.8]} 68... Rxd8 {[%clk 0:00:12.7]} 69. Rxd8 {[%clk
0:00:22.7]} 69... g4 {[%clk 0:00:14.3]} 70. Rd1# {[%clk 0:00:23.6]} 1-0